[Event "Swietokrzyskie GM Chess-ch 2022"]
[Site "Zagnansk"]
[Date "2022.05.01"]
[Round "2.2"]
[White "Chatalbashev, GM Boris"]
[Black "Samunenkov, FM Ihor"]
[Result "0-1"]
[ECO "D31"]
[WhiteElo "2539"]
[BlackElo "2372"]
[Annotator "TA"]
[PlyCount "96"]
[EventDate "2022.04.29"]
[EventCountry "POL"]
[SourceTitle "playchess.com"]
[Source "ChessBase"]
[SourceQuality "1"]
[TimeControl "40/5400+30:1800+30"]

{[%evp 9,96,22,20,22,31,23,25,22,25,20,20,24,26,28,23,22,17,25,27,20,30,20,26,17,22,16,23,24,25,28,39,12,30,16,16,12,8,-26,23,0,0,0,35,34,41,41,34,34,34,34,34,29,37,19,31,22,29,22,31,0,0,0,0,0,0,0,0,-255,-258,-267,-233,-508,-499,-639,-635,-641,-622,-889,-875,-883,-865,-838,-825,-5499,-4887,-5508,-5506,-4805,-2772]} 1. d4 {[%emt 0:00:03]} d5 {[%emt 0:00:07]} 2. c4 {[%emt 0:00:05]} e6 {[%emt 0:00:05]} 3. Nc3 {[%emt 0:00:15]} a6 {[%emt 0:00:10]} 4. cxd5 {[%emt 0:00:07]} exd5 {[%emt 0:00:06]} 5. Nf3 {[%emt 0:00:20]} Nf6 {[%emt 0:00:11]} 6. Bg5 {[%emt 0:00:05] D37: Queen's Gambit Declined: 5 Bf4.} Be6 {[%emt 0:00:11]} 7. e3 {[%emt 0:00:06]} Nbd7 {[%emt 0:00:16]} 8. Bd3 {[%emt 0:00:11] White has an edge.} Bd6 {[%emt 0:00:19]} 9. O-O {[%emt 0:00:32]} c6 $1 {[%emt 0:00:11] 9...c6 is better than 9...0-0.} 10. Bf4 {[%emt 0:00:27]} Qc7 {[%emt 0:00:28]} 11. Bxd6 {[%emt 0:00:38]} Qxd6 {[%emt 0:00:08]} 12. Qc2 {[%emt 0:00:42]} O-O {[%emt 0:02:54]} 13. h3 {[%emt 0:00:07]} g6 {[%emt 0:02:44]} 14. Rfe1 {[%emt 0:00:30]} Rfe8 {[%emt 0:04:38]} 15. a3 {[%emt 0:00:17]} a5 {[%emt 0:02:57]} 16. Rac1 {[%emt 0:03:52] [#]} Nb6 $146 {[%emt 0:09:44]} ({Predecessor:} 16... Rac8 17. Na4 Ne4 18. Bxe4 dxe4 19. Nd2 f5 20. Nc5 Nxc5 21. Qxc5 Qxc5 22. Rxc5 b6 {0-1 (62) Giri,A (2764)-Carlsen,M (2863) chess24.com INT 2020}) 17. Ne5 {[%emt 0:03:39]} Nfd7 {[%emt 0:04:01]} 18. f4 {[%emt 0:00:58]} f6 {[%emt 0:12:38]} 19. Nf3 {[%emt 0:07:39]} Bf7 {[%emt 0:05:29]} 20. h4 {[%emt 0:03:40]} f5 {[%emt 0:06:16]} 21. Ne5 {[%emt 0:05:53][%cal Oh4h5]} Nf6 {[%emt 0:03:50]} 22. Qb3 {[%emt 0:04:05]} Qd8 {[%emt 0:03:05]} 23. Kf2 {[%emt 0:24:24]} h5 {[%emt 0:05:39]} (23... Ng4+ {was preferrable.} 24. Nxg4 fxg4) 24. Nb1 {[%emt 0:09:54][%cal Bc3b1,Bb1d2,Bd2f3,Bf3g5][%mdl 32]} Re7 {[%emt 0:04:31]} 25. Nd2 {[%emt 0:00:38]} Nc8 {[%emt 0:02:15]} 26. Ndf3 {[%emt 0:00:13]} Nd6 {[%emt 0:00:33]} 27. Ng5 {[%emt 0:00:10]} Kg7 {[%emt 0:02:26]} 28. g3 {[%emt 0:04:56]} (28. Ngxf7 Nxf7 29. Kg1 Nd6 $11) 28... Bg8 {[%emt 0:03:40]} 29. Kg2 {[%emt 0:00:41]} Ra7 {[%emt 0:02:26]} 30. Re2 {[%emt 0:00:41]} Ra8 {[%emt 0:01:33]} 31. Qc3 {[%emt 0:03:48]} a4 {[%emt 0:03:04]} 32. Qb4 {[%emt 0:00:39]} Nfe8 {[%emt 0:03:36][%cal Bf6e8,Be8c7,Bc7d5][%mdl 32]} 33. Rc5 {[%emt 0:05:36]} Ne4 $1 {[%emt 0:02:44]} 34. Bxe4 {[%emt 0:03:53]} dxe4 {[%emt 0:02:00]} 35. Rxc6 {[%emt 0:12:08]} Rxe5 {[%emt 0:01:33]} 36. Rxg6+ $1 {[%emt 0:03:10]} Kxg6 {[%emt 0:00:12]} 37. dxe5 {[%emt 0:00:03] [#] Strongly threatening Rd2.} Nc7 {[%emt 0:03:44] Hoping for ...Nd5.} 38. Rd2 {[%emt 0:02:56][%mdl 8192]} (38. Qxb7 $11 Bb3 39. Qb6+ Ne6 40. Qb7 Nxg5 41. hxg5) 38... Nd5 $19 {[%emt 0:02:02]} 39. Qd4 {[%emt 0:00:01]} Qe7 {[%emt 0:03:36] Against e6} 40. e6 $2 {[%emt 0:00:00] [#]} (40. Rc2 {was worth a try.}) 40... Nf6 $1 {[%emt 0:00:00] Black is clearly winning.} ({Worse is} 40... Rd8 41. Kg1 $17) 41. Qd6 {[%emt 0:26:25]} Qxd6 {[%emt 0:20:02]} 42. Rxd6 {[%emt 0:00:03]} Ra6 {[%emt 0:00:37]} 43. Rxa6 {[%emt 0:00:09]} bxa6 {[%emt 0:00:06]} 44. e7 {[%emt 0:00:16]} Ne8 {[%emt 0:02:11]} 45. Kf2 {[%emt 0:02:02]} Kf6 {[%emt 0:00:18]} 46. g4 {[%emt 0:00:12]} hxg4 {[%emt 0:00:19]} 47. h5 {[%emt 0:00:07]} Kxe7 {[%emt 0:00:10]} 48. h6 {[%emt 0:00:24]} Nf6 {[%emt 0:00:12] Weighted Error Value: White=0.57/Black=0.04 (flawless)} 0-1

[Event "Swietokrzyskie GM Chess-ch 2022"]
[Site "Zagnansk"]
[Date "2022.05.01"]
[Round "2.3"]
[White "Szpar, IM Milosz"]
[Black "Stoyanov, IM Tsvetan"]
[Result "1-0"]
[ECO "B22"]
[WhiteElo "2434"]
[BlackElo "2424"]
[Annotator "TA"]
[PlyCount "101"]
[EventDate "2022.04.29"]
[EventCountry "POL"]
[SourceTitle "playchess.com"]
[Source "ChessBase"]
[SourceQuality "1"]
[TimeControl "40/5400+30:1800+30"]

{[%evp 25,101,40,39,41,41,41,46,10,13,12,22,10,39,23,47,34,39,48,46,35,71,38,74,72,106,106,97,101,123,138,122,102,105,122,121,113,101,107,107,112,102,70,86,71,69,76,72,85,143,84,224,223,369,369,356,353,365,362,367,350,337,328,362,393,393,358,370,362,617,406,393,339,266,239,5152,5152,5135,4818]} 1. e4 {[%emt 0:00:04][%cal Be2e4,Be4e5][%mdl 32]} c5 {[%emt 0:00:13]} 2. c3 {[%emt 0:00:16]} Nf6 {[%emt 0:05:39]} 3. e5 {[%emt 0:00:32]} Nd5 {[%emt 0:00:05]} 4. Nf3 {[%emt 0:00:06]} Nc6 {[%emt 0:01:13]} 5. Bc4 {[%emt 0:00:16]} Nb6 {[%emt 0:09:31]} 6. Bb3 {[%emt 0:00:26]} d5 {[%emt 0:05:59]} 7. exd6 {[%emt 0:00:14]} Qxd6 {[%emt 0:02:50]} 8. O-O {[%emt 0:00:42]} Bf5 {[%emt 0:10:28]} 9. d4 {[%emt 0:01:14]} cxd4 {[%emt 0:03:50]} 10. Nxd4 {[%emt 0:00:33]} Nxd4 {[%emt 0:12:14]} 11. cxd4 {[%emt 0:00:29]} e6 {[%emt 0:04:59]} 12. Nc3 {[%emt 0:00:16]} Be7 {[%emt 0:00:30]} 13. Qf3 {[%emt 0:00:08]} O-O {[%emt 0:10:12]} 14. d5 {[%emt 0:03:03] B22: Sicilian: 2 c3.} Qd7 {[%emt 0:04:05]} 15. dxe6 {[%emt 0:12:31]} Bxe6 {[%emt 0:00:33]} 16. Bxe6 {[%emt 0:01:16] White is slightly better.} (16. Rd1 $5 {[%cal Rd1d7]} Qc8 17. h3 $14) 16... fxe6 {[%emt 0:00:08] [#]} 17. Qg4 $146 {[%emt 0:00:12]} ({Predecessor:} 17. Qe4 Bf6 18. Be3 Nd5 19. Rac1 {½-½ (19) Fischer,A-Keilhack,H (2318) Germany 2001}) 17... Bf6 {[%emt 0:01:44]} 18. Ne4 {[%emt 0:27:24]} Qd5 {[%emt 0:02:29]} 19. Rd1 {[%emt 0:14:04]} Qf5 {[%emt 0:00:32]} 20. Qxf5 {[%emt 0:01:55]} exf5 {[%emt 0:00:02]} 21. Nxf6+ {[%emt 0:00:07]} Rxf6 {[%emt 0:00:09]} 22. Bf4 {[%emt 0:00:53]} Rc6 {[%emt 0:09:21]} 23. Rd2 {[%emt 0:09:27]} Re8 {[%emt 0:04:51]} 24. b3 {[%emt 0:03:06]} Rce6 {[%emt 0:05:35] ( -> ...Re1+)} 25. Kf1 {[%emt 0:01:48] Inhibits Re1+.} h6 {[%emt 0:02:49]} 26. h4 {[%emt 0:01:12][%cal Bh2h4,Bh4h5][%mdl 32] Inhibits g5.} R8e7 {[%emt 0:01:20]} 27. Rad1 {[%emt 0:02:32]} Kf7 {[%emt 0:00:15]} 28. h5 {[%emt 0:04:05]} Rc6 {[%emt 0:01:04]} 29. g3 {[%emt 0:00:38]} Ke6 {[%emt 0:01:41]} 30. Re1+ {[%emt 0:07:06]} Kf7 {[%emt 0:00:14]} 31. Rxe7+ {[%emt 0:00:14]} Kxe7 $16 {[%emt 0:00:00][%mdl 4096] Endgame KRB-KRN} 32. Be5 {[%emt 0:00:09]} Kf7 {[%emt 0:01:18]} 33. Kg2 {[%emt 0:00:08]} Re6 {[%emt 0:00:28]} 34. Bb8 {[%emt 0:00:06] White is more active.} a6 {[%emt 0:00:31]} 35. Kf3 {[%emt 0:00:54]} Re7 {[%emt 0:00:33] [#]} 36. Kf4 $1 {[%emt 0:01:36]} Kf6 {[%emt 0:00:23]} ({Black should try} 36... Rd7 37. Re2 Rd5) 37. f3 {[%emt 0:01:12]} ({Resist} 37. Rd6+ $6 Re6 $14) (37. Ba7 $142 Re6 38. Rd8) 37... Nd7 {[%emt 0:00:38] [#] This move loses the game for Black.} (37... g5+ $16 {is a better defense.} 38. hxg6 Rd7) 38. Bd6 $1 $18 {[%emt 0:01:49]} Re8 {[%emt 0:00:30]} (38... Rf7 $142 39. Ba3 g5+ 40. hxg6 Kxg6 41. Rd6+ Kh7) 39. Ba3 {[%emt 0:02:06]} Nb6 {[%emt 0:00:29]} 40. Bb2+ {[%emt 0:00:00]} Kf7 {[%emt 0:00:00]} 41. Kxf5 {[%emt 0:16:14]} Rc8 {[%emt 0:24:09]} 42. g4 {[%emt 0:05:18][%cal Bg3g4,Bg4f5,Bf5f6][%mdl 32]} Rc5+ {[%emt 0:03:39]} 43. Ke4 {[%emt 0:00:12]} Rc6 {[%emt 0:01:29]} 44. f4 {[%emt 0:00:31]} g6 {[%emt 0:00:31]} 45. f5 {[%emt 0:00:28]} gxf5+ {[%emt 0:01:51]} 46. gxf5 {[%emt 0:00:10]} Nc8 $2 {[%emt 0:00:35]} (46... a5 47. Rd8 Nc8) 47. Be5 {[%emt 0:06:09] Threatens to win with Rd7+.} Rc1 {[%emt 0:01:46]} 48. Rd7+ {[%emt 0:02:04]} Ke8 {[%emt 0:00:01]} 49. Rh7 {[%emt 0:00:59]} Re1+ $2 {[%emt 0:00:16]} (49... Ne7) 50. Kd5 {[%emt 0:00:51] Ke6 would kill now.} Rc1 {[%emt 0:00:44]} 51. f6 {[%emt 0:02:15] Weighted Error Value: White=0.14 (very precise) /Black=0.26 (precise)} 1-0

[Event "Swietokrzyskie GM Chess-ch 2022"]
[Site "Zagnansk"]
[Date "2022.05.01"]
[Round "2.4"]
[White "Budisavljevic, GM Luka"]
[Black "Fus, FM Jakub"]
[Result "1/2-1/2"]
[ECO "D35"]
[WhiteElo "2509"]
[BlackElo "2377"]
[Annotator "TA"]
[PlyCount "118"]
[EventDate "2022.04.29"]
[EventCountry "POL"]
[SourceTitle "playchess.com"]
[Source "ChessBase"]
[SourceQuality "1"]
[TimeControl "40/5400+30:1800+30"]

{[%evp 26,118,15,9,32,31,37,27,33,43,38,0,0,21,35,37,38,0,9,11,39,43,59,57,50,54,69,76,65,58,62,75,137,139,128,87,101,101,98,90,77,77,78,47,50,0,0,0,0,-4,-5,-10,0,0,0,0,7,0,80,31,85,52,142,120,281,265,431,438,403,431,413,420,410,403,381,362,366,233,218,95,188,0,0,0,0,0,0,0,0,0,0,0,0,0,0]} 1. d4 {[%emt 0:00:02]} d5 {[%emt 0:00:14]} 2. c4 {[%emt 0:00:06]} e6 {[%emt 0:00:13]} 3. Nc3 {[%emt 0:00:04]} Nf6 {[%emt 0:00:17]} 4. cxd5 {[%emt 0:00:05]} exd5 {[%emt 0:00:09]} 5. Bg5 {[%emt 0:00:04]} c6 {[%emt 0:00:24]} 6. e3 {[%emt 0:00:04]} h6 {[%emt 0:00:29]} 7. Bh4 {[%emt 0:00:10]} Be7 {[%emt 0:00:18]} 8. Bd3 {[%emt 0:00:08]} O-O {[%emt 0:00:32]} 9. Qc2 {[%emt 0:01:05]} Re8 {[%emt 0:00:33]} 10. Nge2 {[%emt 0:00:24]} Nbd7 {[%emt 0:00:33]} 11. O-O {[%emt 0:01:46]} Nh5 {[%emt 0:01:03]} 12. Bxe7 {[%emt 0:00:52]} Qxe7 {[%emt 0:00:07]} 13. Rab1 {[%emt 0:01:07]} a5 {[%emt 0:07:14]} 14. a3 {[%emt 0:00:50]} Nhf6 {[%emt 0:04:14] D36: Queen's Gambit Declined: Exchange Variation: Main line (5 Bg5 c6 6 Qc2).} 15. Rfe1 {[%emt 0:03:22]} Nb6 {[%emt 0:15:22] [#]} 16. Ng3 $146 {[%emt 0:02:38]} ({Predecessor:} 16. h3 Bd7 17. Ng3 Be6 18. Rbd1 Qc7 19. Nge2 Nc8 20. Nf4 Nb6 21. Nb1 Qd6 22. Nd2 Bd7 23. Nf3 Bc8 24. Rb1 Nbd7 25. Rec1 a4 26. Ne2 Qe7 27. Nc3 Nb6 28. Nd2 {½-½ (28) Hinterberger,W (2350)-Schindler,S (2323) LSS email 2010}) 16... Be6 {[%emt 0:02:16] White has an edge.} 17. f3 {[%emt 0:02:57]} c5 {[%emt 0:11:10]} 18. dxc5 {[%emt 0:21:39]} Qxc5 {[%emt 0:00:12]} 19. Nb5 {[%emt 0:06:49]} Qxc2 {[%emt 0:14:30]} 20. Bxc2 {[%emt 0:01:11] aiming for Nc7.} Rec8 {[%emt 0:00:08] Against Nc7} 21. Rec1 {[%emt 0:04:46]} Nc4 {[%emt 0:03:30]} 22. Kf2 {[%emt 0:03:09]} Rc5 {[%emt 0:03:40]} 23. Nd4 {[%emt 0:00:23]} Nd2 {[%emt 0:07:26]} 24. Ra1 {[%emt 0:05:11][%cal Oc2h7] Black must now prevent Bh7+!} Rac8 {[%emt 0:01:48][%cal Od2b3]} 25. Nge2 {[%emt 0:00:10]} Bd7 {[%emt 0:05:09]} 26. b3 {[%emt 0:04:42][%cal Bb2b3,Bb3b4][%mdl 32] And now Ke1 would win.} a4 {[%emt 0:00:08]} 27. b4 {[%emt 0:04:46]} R5c7 {[%emt 0:00:25]} 28. Bd3 {[%emt 0:04:31]} Ne8 {[%emt 0:07:01]} (28... Nc4 $142) 29. Rxc7 $16 {[%emt 0:01:40]} Rxc7 {[%emt 0:00:11]} 30. Nf4 {[%emt 0:08:40]} Nf6 {[%emt 0:01:09]} 31. Ke2 {[%emt 0:00:33]} Nc4 {[%emt 0:00:58]} 32. Rc1 {[%emt 0:02:49]} b5 {[%emt 0:02:13]} 33. Bxc4 {[%emt 0:00:05]} dxc4 {[%emt 0:02:15]} 34. e4 {[%emt 0:01:52] White is more active.} g5 {[%emt 0:01:07]} 35. Nd5 {[%emt 0:00:04]} (35. Nh3 $1 $14) 35... Nxd5 $11 {[%emt 0:00:06]} 36. exd5 {[%emt 0:00:01][%mdl 4096] Endgame KRB-KRN} Kf8 {[%emt 0:03:23]} 37. Ke3 {[%emt 0:06:36]} Rc8 $1 {[%emt 0:00:41]} 38. Nc2 {[%emt 0:05:00]} Ke7 {[%emt 0:00:40]} 39. Kd4 {[%emt 0:01:53]} Kd6 {[%emt 0:00:15]} 40. Ne3 {[%emt 0:00:00]} Re8 {[%emt 0:00:00]} 41. Re1 {[%emt 0:17:08][%cal Oe3f5]} Re7 {[%emt 0:26:28] [#]} (41... Kc7 $11) 42. g4 {[%emt 0:00:02]} (42. h4 $1 $16) 42... f6 {[%emt 0:02:39] [#]} (42... f5 $14) 43. h4 $1 $16 {[%emt 0:00:21]} gxh4 {[%emt 0:07:48]} ({Black should try} 43... Rf7 $1 $14) 44. Rh1 {[%emt 0:00:06]} c3 $2 {[%emt 0:00:10]} (44... h5 $16 {was necessary.}) 45. Rxh4 $18 {[%emt 0:00:46]} Re5 $2 {[%emt 0:00:22]} (45... Rh7 46. f4 (46. Kxc3 Ke5 $16) 46... Rh8 47. Kxc3 Be8) 46. Rxh6 {[%emt 0:01:35]} c2 {[%emt 0:00:04]} 47. Rh1 {[%emt 0:00:07]} f5 {[%emt 0:01:44]} 48. Rh6+ {[%emt 0:09:59]} Be6 {[%emt 0:00:56]} 49. Nxc2 {[%emt 0:02:15]} Rxd5+ {[%emt 0:00:21]} 50. Kc3 {[%emt 0:00:08]} Ke5 {[%emt 0:02:15] Prevents Nd4.} 51. Ne3 {[%emt 0:01:37]} Rd7 {[%emt 0:00:14]} 52. gxf5 {[%emt 0:01:47]} (52. f4+ $1 $18 {is the precise move to win.} Kxf4 53. Rxe6 fxg4 54. Ng2+ Kg3 55. Ne1) 52... Bb3 {[%emt 0:00:05]} (52... Bxf5 $16 {keeps fighting.} 53. Nxf5 Kxf5) 53. Rb6 $2 {[%emt 0:02:31]} (53. Rc6 $18) 53... Kf4 $11 {[%emt 0:00:23][%csl LRe3,LRf3] The position is equal.} 54. Ng4 {[%emt 0:01:09]} Bc4 {[%emt 0:00:30] Strongly threatening ...Rd3+.} 55. f6 {[%emt 0:01:32]} Rd3+ {[%emt 0:00:03]} 56. Kc2 {[%emt 0:00:01][%cal Of6f7] Hoping for f7!} Rxf3 {[%emt 0:00:31]} (56... Rxa3 $2 57. f7 Bxf7 58. Rf6+ Kg3 59. Rxf7 $18) 57. Nh6 {[%emt 0:00:22]} Ke4 {[%emt 0:00:52]} 58. f7 {[%emt 0:02:33]} Rf2+ {[%emt 0:00:02]} 59. Kd1 {[%emt 0:01:09]} Rf1+ {[%emt 0:00:10] Black defended with fortune.  Weighted Error Value: White=0.17 (very precise) /Black=0.22 (precise)} 1/2-1/2

[Event "Swietokrzyskie GM Chess-ch 2022"]
[Site "Zagnansk"]
[Date "2022.05.01"]
[Round "2.5"]
[White "Mikrut, IM Dariusz"]
[Black "Pacan-Milej, FM Kosma"]
[Result "1/2-1/2"]
[ECO "E71"]
[WhiteElo "2361"]
[BlackElo "2404"]
[Annotator "TA"]
[PlyCount "86"]
[EventDate "2022.04.29"]
[EventCountry "POL"]
[SourceTitle "playchess.com"]
[Source "ChessBase"]
[SourceQuality "1"]
[TimeControl "40/5400+30:1800+30"]

{[%evp 11,86,38,43,23,15,9,0,12,46,48,42,38,41,35,57,57,56,46,54,37,54,58,56,34,44,45,55,24,37,15,16,-29,-18,-30,-31,-26,-18,-25,0,-38,-38,-38,0,0,0,0,0,0,0,0,0,0,0,0,0,0,0,0,0,0,0,0,0,0,0,0,0,0,0,0,0,0,0,0,0,0,0]} 1. d4 {[%emt 0:00:02]} Nf6 {[%emt 0:00:10]} 2. c4 {[%emt 0:00:05]} g6 {[%emt 0:00:05]} 3. Nc3 {[%emt 0:00:03]} Bg7 {[%emt 0:00:06]} 4. e4 {[%emt 0:00:05]} d6 {[%emt 0:00:08]} 5. h3 {[%emt 0:00:25]} O-O {[%emt 0:00:23]} 6. Be3 {[%emt 0:01:25]} c5 {[%emt 0:10:49]} 7. d5 {[%emt 0:02:06] E71: King's Indian: 4 e4 d6 5 h3.} e6 {[%emt 0:00:30]} 8. Nf3 {[%emt 0:07:11]} exd5 {[%emt 0:03:50]} 9. exd5 {[%emt 0:00:47]} Bf5 {[%emt 0:03:46]} 10. Bd3 {[%emt 0:02:24]} Bxd3 {[%emt 0:32:02]} 11. Qxd3 {[%emt 0:00:13]} a6 {[%emt 0:00:10][%cal Ob7b5]} 12. a4 {[%emt 0:01:56]} Re8 {[%emt 0:03:30]} 13. O-O {[%emt 0:00:09]} Nbd7 {[%emt 0:02:31]} 14. Rfe1 {[%emt 0:08:03] [#]} Qb6 $146 {[%emt 0:06:51]} ({Predecessor:} 14... Qc7 15. Bf4 Rad8 16. Qd2 Nb6 17. b3 Nc8 18. Rxe8+ Rxe8 19. Re1 Qd7 20. Rxe8+ Qxe8 21. Qe3 Qxe3 22. Bxe3 Ng4 {½-½ (22) Savage,N (2058)-Barnes,M (2247) England 2010}) 15. Qc2 {[%emt 0:03:08]} Ne5 {[%emt 0:14:21]} 16. Nd2 {[%emt 0:15:20]} h6 {[%emt 0:03:23]} 17. b4 {[%emt 0:19:01]} Ned7 {[%emt 0:09:42][%cal Oe8e3]} 18. b5 {[%emt 0:03:54]} Ne5 {[%emt 0:01:44]} 19. a5 {[%emt 0:00:36]} Qd8 {[%emt 0:00:40]} 20. bxa6 {[%emt 0:01:05]} bxa6 {[%emt 0:01:04]} 21. Na4 {[%emt 0:05:15]} Rb8 {[%emt 0:02:57]} 22. Nb6 {[%emt 0:00:19]} Nfd7 {[%emt 0:00:34]} 23. Nxd7 {[%emt 0:06:53]} Qxd7 {[%emt 0:00:10]} 24. Rab1 {[%emt 0:00:12] Inhibits Rb2.} Qc7 $1 {[%emt 0:01:11]} 25. Rxb8 {[%emt 0:03:07]} Rxb8 {[%emt 0:00:05]} 26. Rb1 {[%emt 0:00:04]} Kh7 27. Rxb8 {[%emt 0:16:34] The position is equal.} Qxb8 {[%emt 0:00:37]} 28. f4 {[%emt 0:00:56]} Nd7 {[%emt 0:00:04]} 29. Qa4 {[%emt 0:00:44]} Qe8 {[%emt 0:02:14]} 30. Nf1 {[%emt 0:00:25]} Bd4 {[%emt 0:00:48]} 31. Bxd4 {[%emt 0:02:28]} cxd4 {[%emt 0:00:01]} 32. Qc6 {[%emt 0:00:53][%csl LRa6,LRd6]} Qe7 {[%emt 0:00:08] [#] aiming for ...Nc5.} 33. Qxa6 {[%emt 0:00:37] Black must now prevent Qa7.} ({Of course not} 33. Qb7 d3 $15) 33... Nc5 {[%emt 0:00:45]} 34. Qb6 {[%emt 0:00:08] Hoping for a6.} d3 $1 {[%emt 0:01:01]} 35. a6 {[%emt 0:00:46] And now a7 would win.} d2 {[%emt 0:00:25][%mdl 64] [#] Decoy} 36. Nxd2 {[%emt 0:00:25] Strongly threatening Nf1.} Qe3+ {[%emt 0:00:14]} 37. Kh1 {[%emt 0:00:03]} Qxd2 {[%emt 0:01:10]} 38. Qxd6 {[%emt 0:01:09]} Ne4 {[%emt 0:00:19] ( -> ...Ng3+)} 39. Qc7 {[%emt 0:00:12]} Qe1+ {[%emt 0:00:21]} 40. Kh2 {[%emt 0:00:00]} Qg3+ {[%emt 0:00:00]} 41. Kg1 {[%emt 0:15:15]} Qf2+ {[%emt 0:21:54]} 42. Kh2 {[%emt 0:01:40]} Qg3+ {[%emt 0:00:18]} 43. Kg1 {[%emt 0:00:07]} Qf2+ {[%emt 0:00:03] Weighted Error Value: White=0.06 (flawless) /Black=0.05 (flawless)} 1/2-1/2

[Event "Swietokrzyskie GM Chess-ch 2022"]
[Site "Zagnansk"]
[Date "2022.05.01"]
[Round "3.1"]
[White "Pacan-Milej, FM Kosma"]
[Black "Kowalski, IM Igor"]
[Result "1-0"]
[ECO "D45"]
[WhiteElo "2404"]
[BlackElo "2370"]
[Annotator "TA"]
[PlyCount "65"]
[EventDate "2022.04.29"]
[EventCountry "POL"]
[SourceTitle "playchess.com"]
[Source "ChessBase"]
[SourceQuality "1"]
[TimeControl "40/5400+30:1800+30"]

{[%evp 17,65,19,31,3,30,9,16,0,38,37,70,81,67,71,100,102,143,100,102,86,92,83,111,118,112,104,106,105,135,129,131,133,140,129,235,212,264,233,241,264,256,248,300,289,294,296,257,123,120,127]} 1. d4 {[%emt 0:00:03]} d5 {[%emt 0:00:03]} 2. c4 {[%emt 0:00:07]} c6 {[%emt 0:00:03]} 3. Nc3 {[%emt 0:00:07]} Nf6 {[%emt 0:00:04]} 4. e3 {[%emt 0:00:11]} e6 {[%emt 0:00:05]} 5. Nf3 {[%emt 0:00:05]} Nbd7 {[%emt 0:00:04]} 6. Be2 {[%emt 0:00:18]} Bd6 {[%emt 0:00:11]} 7. O-O {[%emt 0:00:08]} O-O {[%emt 0:00:05]} 8. b3 {[%emt 0:00:23]} Ne4 {[%emt 0:04:41]} 9. Bb2 {[%emt 0:00:14]} f5 {[%emt 0:00:15]} 10. Rc1 {[%emt 0:02:25] D45: Semi-Slav: 5 e3.} Qf6 {[%emt 0:03:24]} 11. Rc2 {[%emt 0:10:34]} Qh6 {[%emt 0:06:18] [#]} 12. g3 $146 {[%emt 0:02:49] The position is equal.} ({Predecessor:} 12. Na4 g5 13. Ne5 g4 14. Qe1 Qg7 15. Nd3 Rf6 16. Nf4 Rh6 17. f3 Bxf4 18. exf4 Rxh2 19. fxe4 {0-1 (38) Rohde,M (2555)-Machulsky,A (2495) New York 1990}) 12... g5 {[%emt 0:13:00]} 13. Qc1 {[%emt 0:20:44]} g4 {[%emt 0:19:34]} 14. Nxe4 {[%emt 0:09:39]} dxe4 {[%emt 0:01:43]} 15. Nh4 {[%emt 0:15:17][%cal Bf3h4,Bh4g2,Bg2f4][%mdl 32]} Be7 {[%emt 0:06:53]} 16. Ng2 {[%emt 0:01:44]} Bg5 {[%emt 0:00:09]} 17. Rd1 {[%emt 0:02:27]} Nf6 {[%emt 0:05:57]} 18. Ba3 {[%emt 0:00:44]} Re8 {[%emt 0:03:52]} 19. Nf4 {[%emt 0:03:30]} Bd7 {[%emt 0:08:42]} 20. Bd6 {[%emt 0:01:00]} Qg7 {[%emt 0:00:28]} 21. Qa3 {[%emt 0:00:40]} Qf7 {[%emt 0:00:30]} 22. Qb4 {[%emt 0:05:45]} b6 {[%emt 0:04:45]} 23. a4 {[%emt 0:00:17]} Bh6 {[%emt 0:01:28]} 24. a5 {[%emt 0:01:42]} Bf8 {[%emt 0:00:30]} 25. Ra2 {[%emt 0:05:15] 0x0.0024a73b40f9dp-1022s more active pieces.} Reb8 {[%emt 0:10:18]} 26. axb6 $18 {[%emt 0:03:03] [#] b7 is the strong threat.} axb6 {[%emt 0:04:01]} 27. Rxa8 {[%emt 0:02:18]} Rxa8 {[%emt 0:00:09]} 28. Bxf8 {[%emt 0:00:13]} Qxf8 {[%emt 0:00:04]} 29. Qxb6 {[%emt 0:00:14]} Rb8 {[%emt 0:00:20]} 30. Qc7 {[%emt 0:01:30]} Rxb3 {[%emt 0:00:03]} 31. Qe5 {[%emt 0:00:11] Threatens to win with d5.} Kf7 {[%emt 0:03:02] [#]} 32. d5 {[%emt 0:10:52]} (32. h3 $1 $18 {[%cal Rh3g4] and the rest is easy.}) 32... exd5 $16 {[%emt 0:00:14]} (32... cxd5 $2 33. cxd5 exd5 34. Nxd5 Nxd5 35. Bc4 $18 (35. Qxd5+ Be6 $16)) 33. cxd5 {[%emt 0:00:04] Weighted Error Value: White=0.13 (very precise) /Black=0.19 (very precise)} 1-0